[Event "Titled Tuesday Blitz May 24 Late 2022"]
[White "Csonka, Balazs"]
[Black "Hansen, Eric"]
[WhiteFideId "742910"]
[BlackFideId "2606771"]
[WhiteElo "2404"]
[BlackElo "2568"]
[Result "1-0"]
[Round "05"]
[TimeControl "180+1"]
[Date "2022.05.24"]
[WhiteClock "0:00:02"]
[BlackClock "0:00:02"]

1. d4 {[%clk 0:03:00]}  Nf6 {[%clk 0:02:58]} 2. c4 {[%clk 0:03:00]}  e6 {[%clk 0:02:58]} 3. Nc3 {[%clk 0:03:00]}  Bb4 {[%clk 0:02:58]} 4. Qc2 {[%clk 0:03:01]}  O-O {[%clk 0:02:57]} 5. e4 {[%clk 0:03:00]}  c5 {[%clk 0:02:43]} 6. e5 {[%clk 0:02:55]}  Ne8 {[%clk 0:02:42]} 7. a3 {[%clk 0:02:44]}  Ba5 {[%clk 0:02:16]} 8. dxc5 {[%clk 0:02:36]}  Nc6 {[%clk 0:02:16]} 9. Nf3 {[%clk 0:02:10]}  Bc7 {[%clk 0:01:57]} 10. Bd3 {[%clk 0:02:06]}  Nxe5 {[%clk 0:01:29]} 11. Nxe5 {[%clk 0:02:01]}  Bxe5 {[%clk 0:01:29]} 12. Bxh7+ {[%clk 0:02:02]}  Kh8 {[%clk 0:01:30]} 13. Bd3 {[%clk 0:01:59]}  f5 {[%clk 0:01:26]} 14. b4 {[%clk 0:01:38]}  Nf6 {[%clk 0:01:20]} 15. Bb2 {[%clk 0:01:35]}  b6 {[%clk 0:01:15]} 16. cxb6 {[%clk 0:01:28]}  axb6 {[%clk 0:01:16]} 17. Nb5 {[%clk 0:01:04]}  Bb8 {[%clk 0:01:10]} 18. O-O-O {[%clk 0:00:53]}  Bb7 {[%clk 0:01:10]} 19. f3 {[%clk 0:00:53]}  Qe8 {[%clk 0:01:03]} 20. Kb1 {[%clk 0:00:47]}  Qh5 {[%clk 0:01:00]} 21. h3 {[%clk 0:00:43]}  Bg3 {[%clk 0:00:55]} 22. Nd4 {[%clk 0:00:35]}  Rac8 {[%clk 0:00:50]} 23. Ne2 {[%clk 0:00:33]}  Bb8 {[%clk 0:00:46]} 24. g4 {[%clk 0:00:33]}  Qh4 {[%clk 0:00:45]} 25. Rdf1 {[%clk 0:00:30]}  d5 {[%clk 0:00:42]} 26. c5 {[%clk 0:00:15]}  bxc5 {[%clk 0:00:42]} 27. bxc5 {[%clk 0:00:16]}  Nd7 {[%clk 0:00:40]} 28. gxf5 {[%clk 0:00:13]}  e5 {[%clk 0:00:31]} 29. Rhg1 {[%clk 0:00:09]}  Nxc5 {[%clk 0:00:28]} 30. Rg4 {[%clk 0:00:09]}  Qh6 {[%clk 0:00:24]} 31. Rfg1 {[%clk 0:00:08]}  Qe3 {[%clk 0:00:19]} 32. Nc1 {[%clk 0:00:04]}  Nxd3 {[%clk 0:00:16]} 33. Qg2 {[%clk 0:00:04]}  Nxc1 {[%clk 0:00:03]} 34. Bxc1 {[%clk 0:00:05]}  Qd3+ {[%clk 0:00:02]} 35. Ka1 {[%clk 0:00:02]} 1-0


[Site "https://www.chess.com"]

[Event "Titled Tuesday Blitz May 24 Late 2022"]
[White "Diaz Rosas, Julio Cesar"]
[Black "Shuvalova, Polina"]
[WhiteFideId "5105099"]
[BlackFideId "24171760"]
[WhiteElo "2278"]
[BlackElo "2355"]
[Result "1-0"]
[Round "05"]
[TimeControl "180+1"]
[Date "2022.05.24"]
[WhiteClock "0:00:10"]
[BlackClock "0:00:06"]

1. d4 {[%clk 0:03:00]}  Nf6 {[%clk 0:02:59]} 2. Nc3 {[%clk 0:03:01]}  d5 {[%clk 0:02:59]} 3. Bf4 {[%clk 0:03:01]}  e6 {[%clk 0:02:59]} 4. e3 {[%clk 0:02:57]}  Bd6 {[%clk 0:02:58]} 5. Bg3 {[%clk 0:02:55]}  O-O {[%clk 0:02:57]} 6. Bd3 {[%clk 0:02:55]}  c5 {[%clk 0:02:57]} 7. Nf3 {[%clk 0:02:53]}  Nc6 {[%clk 0:02:56]} 8. O-O {[%clk 0:02:53]}  Bxg3 {[%clk 0:02:55]} 9. hxg3 {[%clk 0:02:51]}  cxd4 {[%clk 0:02:56]} 10. exd4 {[%clk 0:02:51]}  Bd7 {[%clk 0:02:52]} 11. Re1 {[%clk 0:02:44]}  Rc8 {[%clk 0:02:50]} 12. Ne5 {[%clk 0:02:34]}  Nb4 {[%clk 0:02:40]} 13. Bf1 {[%clk 0:02:26]}  Ne8 {[%clk 0:02:39]} 14. g4 {[%clk 0:02:23]}  Nd6 {[%clk 0:02:38]} 15. Nd3 {[%clk 0:02:19]}  Nc6 {[%clk 0:02:31]} 16. Ne2 {[%clk 0:02:19]}  Qg5 {[%clk 0:02:28]} 17. Ng3 {[%clk 0:02:15]}  Nxd4 {[%clk 0:02:25]} 18. Ne5 {[%clk 0:02:13]}  Nxc2 {[%clk 0:02:15]} 19. Nxd7 {[%clk 0:02:12]}  Rfd8 {[%clk 0:02:06]} 20. Ne5 {[%clk 0:02:05]}  Nxe1 {[%clk 0:01:58]} 21. Qxe1 {[%clk 0:02:06]}  Rc2 {[%clk 0:01:52]} 22. Nf3 {[%clk 0:01:51]}  Qxg4 {[%clk 0:01:47]} 23. Qa5 {[%clk 0:01:49]}  Rdc8 {[%clk 0:01:42]} 24. Qxa7 {[%clk 0:01:47]}  Qb4 {[%clk 0:01:40]} 25. b3 {[%clk 0:01:44]}  h6 {[%clk 0:01:39]} 26. Qd4 {[%clk 0:01:41]}  Qxd4 {[%clk 0:01:37]} 27. Nxd4 {[%clk 0:01:42]}  Rd2 {[%clk 0:01:37]} 28. Nf3 {[%clk 0:01:38]}  Rdc2 {[%clk 0:01:36]} 29. Ne2 {[%clk 0:01:36]}  Ne4 {[%clk 0:01:33]} 30. Nfd4 {[%clk 0:01:32]}  Rb2 {[%clk 0:01:33]} 31. Nb5 {[%clk 0:01:26]}  Ra8 {[%clk 0:01:30]} 32. a4 {[%clk 0:01:26]}  Rxb3 {[%clk 0:01:28]} 33. Nc1 {[%clk 0:01:23]}  Rb4 {[%clk 0:01:27]} 34. a5 {[%clk 0:01:23]}  Nd2 {[%clk 0:01:15]} 35. Bd3 {[%clk 0:01:18]}  Nc4 {[%clk 0:01:14]} 36. Bxc4 {[%clk 0:01:10]}  Rxc4 {[%clk 0:01:08]} 37. Nd3 {[%clk 0:01:10]}  Rc6 {[%clk 0:01:03]} 38. Kf1 {[%clk 0:01:08]}  Rca6 {[%clk 0:01:02]} 39. Rb1 {[%clk 0:01:04]}  Rxa5 {[%clk 0:01:01]} 40. Ke2 {[%clk 0:01:04]}  Ra2+ {[%clk 0:00:57]} 41. Ke3 {[%clk 0:01:04]}  Ra1 {[%clk 0:00:53]} 42. Rb3 {[%clk 0:01:02]}  Rg1 {[%clk 0:00:44]} 43. g3 {[%clk 0:01:01]}  Rd8 {[%clk 0:00:43]} 44. Nd4 {[%clk 0:00:58]}  Rd7 {[%clk 0:00:42]} 45. Ke2 {[%clk 0:00:53]}  g5 {[%clk 0:00:39]} 46. Ne1 {[%clk 0:00:50]}  Rh1 {[%clk 0:00:39]} 47. Ndf3 {[%clk 0:00:48]}  Kg7 {[%clk 0:00:38]} 48. Ne5 {[%clk 0:00:47]}  Rc7 {[%clk 0:00:38]} 49. N5d3 {[%clk 0:00:47]}  h5 {[%clk 0:00:35]} 50. Kf3 {[%clk 0:00:47]}  h4 {[%clk 0:00:18]} 51. Kg2 {[%clk 0:00:46]}  Rxe1 {[%clk 0:00:18]} 52. Nxe1 {[%clk 0:00:47]}  hxg3 {[%clk 0:00:18]} 53. Kxg3 {[%clk 0:00:43]}  f5 {[%clk 0:00:18]} 54. Nf3 {[%clk 0:00:41]}  Kf6 {[%clk 0:00:19]} 55. Rb6 {[%clk 0:00:41]}  Rc3 {[%clk 0:00:18]} 56. Kg2 {[%clk 0:00:40]}  Rc4 {[%clk 0:00:15]} 57. Rxb7 {[%clk 0:00:38]}  g4 {[%clk 0:00:16]} 58. Ne1 {[%clk 0:00:37]}  d4 {[%clk 0:00:14]} 59. Nd3 {[%clk 0:00:34]}  Rc3 {[%clk 0:00:15]} 60. Nb4 {[%clk 0:00:32]}  Rf3 {[%clk 0:00:13]} 61. Rd7 {[%clk 0:00:30]}  e5 {[%clk 0:00:13]} 62. Nc6 {[%clk 0:00:26]}  Ke6 {[%clk 0:00:05]} 63. Rd8 {[%clk 0:00:20]}  d3 {[%clk 0:00:05]} 64. Nb4 {[%clk 0:00:15]}  e4 {[%clk 0:00:04]} 65. Nc6 {[%clk 0:00:15]}  Kf6 {[%clk 0:00:04]} 66. Rd6+ {[%clk 0:00:14]}  Kg5 {[%clk 0:00:04]} 67. Ne5 {[%clk 0:00:14]}  Rh3 {[%clk 0:00:03]} 68. Rd5 {[%clk 0:00:07]}  Kf4 {[%clk 0:00:03]} 69. Ng6+ {[%clk 0:00:07]}  Kg5 {[%clk 0:00:03]} 70. Ne7 {[%clk 0:00:07]}  Kh6 {[%clk 0:00:02]} 71. Nxf5+ {[%clk 0:00:07]}  Kg6 {[%clk 0:00:02]} 72. Ng3 {[%clk 0:00:07]}  Rh8 {[%clk 0:00:01]} 73. Nxe4 {[%clk 0:00:07]}  Re8 {[%clk 0:00:02]} 74. Ng3 {[%clk 0:00:07]}  d2 {[%clk 0:00:02]} 75. Rxd2 {[%clk 0:00:07]}  Rf8 {[%clk 0:00:02]} 76. Rd4 {[%clk 0:00:07]}  Kg5 {[%clk 0:00:03]} 77. Re4 {[%clk 0:00:08]}  Kg6 {[%clk 0:00:03]} 78. Nf1 {[%clk 0:00:08]}  Kg5 {[%clk 0:00:03]} 79. Ne3 {[%clk 0:00:08]}  Rf4 {[%clk 0:00:04]} 80. Rxf4 {[%clk 0:00:08]}  Kxf4 {[%clk 0:00:04]} 81. Nf1 {[%clk 0:00:09]}  Ke4 {[%clk 0:00:04]} 82. Kg3 {[%clk 0:00:09]}  Kf5 {[%clk 0:00:05]} 83. Ne3+ {[%clk 0:00:10]}  Kg5 {[%clk 0:00:06]} 84. Nxg4 {[%clk 0:00:10]} 1-0


[Site "https://www.chess.com"]

[Event "Titled Tuesday Blitz May 24 Late 2022"]
[White "Drygalov, Andrey"]
[Black "Bortnyk, Olexandr"]
[WhiteFideId "24171735"]
[BlackFideId "14120828"]
[WhiteElo "2540"]
[BlackElo "2723"]
[Result "1-0"]
[Round "05"]
[TimeControl "180+1"]
[Date "2022.05.24"]
[WhiteClock "0:00:39"]
[BlackClock "0:00:07"]

1. e4 {[%clk 0:02:59]}  Nf6 {[%clk 0:02:58]} 2. e5 {[%clk 0:02:59]}  Nd5 {[%clk 0:02:59]} 3. d4 {[%clk 0:03:00]}  d6 {[%clk 0:02:59]} 4. c4 {[%clk 0:03:01]}  Nb6 {[%clk 0:02:59]} 5. exd6 {[%clk 0:03:02]}  exd6 {[%clk 0:03:00]} 6. Nc3 {[%clk 0:03:02]}  Be7 {[%clk 0:03:01]} 7. Bd3 {[%clk 0:03:02]}  O-O {[%clk 0:02:59]} 8. Nge2 {[%clk 0:03:02]}  c6 {[%clk 0:02:57]} 9. O-O {[%clk 0:03:02]}  Na6 {[%clk 0:02:56]} 10. b3 {[%clk 0:03:02]}  d5 {[%clk 0:02:55]} 11. a3 {[%clk 0:02:51]}  dxc4 {[%clk 0:02:49]} 12. bxc4 {[%clk 0:02:51]}  Nc7 {[%clk 0:02:47]} 13. Be3 {[%clk 0:02:38]}  Re8 {[%clk 0:02:15]} 14. Qc2 {[%clk 0:02:38]}  g6 {[%clk 0:02:13]} 15. Rfd1 {[%clk 0:02:29]}  Bf6 {[%clk 0:02:07]} 16. Ne4 {[%clk 0:02:26]}  Bg7 {[%clk 0:02:04]} 17. Bg5 {[%clk 0:02:07]}  f6 {[%clk 0:02:04]} 18. Bh4 {[%clk 0:02:08]}  Ne6 {[%clk 0:01:53]} 19. c5 {[%clk 0:02:00]}  Nd5 {[%clk 0:01:52]} 20. Nd6 {[%clk 0:02:00]}  Re7 {[%clk 0:01:50]} 21. Bc4 {[%clk 0:01:58]}  b6 {[%clk 0:01:29]} 22. Nc3 {[%clk 0:01:58]}  Nec7 {[%clk 0:01:27]} 23. Bg3 {[%clk 0:01:52]}  Be6 {[%clk 0:01:26]} 24. Nxd5 {[%clk 0:01:39]}  Bxd5 {[%clk 0:01:19]} 25. cxb6 {[%clk 0:01:28]}  axb6 {[%clk 0:01:15]} 26. Bxd5+ {[%clk 0:01:28]}  cxd5 {[%clk 0:01:16]} 27. Qc6 {[%clk 0:01:26]}  Re6 {[%clk 0:01:05]} 28. Rac1 {[%clk 0:01:19]}  Ne8 {[%clk 0:01:00]} 29. Qxd5 {[%clk 0:01:15]}  Nxd6 {[%clk 0:00:49]} 30. Qxe6+ {[%clk 0:01:11]}  Nf7 {[%clk 0:00:50]} 31. Rc7 {[%clk 0:01:10]}  Qe8 {[%clk 0:00:38]} 32. Qxe8+ {[%clk 0:01:06]}  Rxe8 {[%clk 0:00:39]} 33. Rdc1 {[%clk 0:01:06]}  Bf8 {[%clk 0:00:39]} 34. Rc8 {[%clk 0:00:58]}  Re2 {[%clk 0:00:31]} 35. Rb8 {[%clk 0:00:57]}  Kg7 {[%clk 0:00:30]} 36. Kf1 {[%clk 0:00:56]}  Re7 {[%clk 0:00:16]} 37. Rxb6 {[%clk 0:00:52]}  Rd7 {[%clk 0:00:14]} 38. Rc7 {[%clk 0:00:50]}  Rxc7 {[%clk 0:00:11]} 39. Bxc7 {[%clk 0:00:49]}  Bxa3 {[%clk 0:00:12]} 40. Ke2 {[%clk 0:00:47]}  Kf8 {[%clk 0:00:11]} 41. Rxf6 {[%clk 0:00:46]}  Ke7 {[%clk 0:00:11]} 42. Ra6 {[%clk 0:00:46]}  Bb4 {[%clk 0:00:11]} 43. Ra4 {[%clk 0:00:45]}  Bc3 {[%clk 0:00:09]} 44. Kd3 {[%clk 0:00:44]}  Be1 {[%clk 0:00:09]} 45. Ra2 {[%clk 0:00:44]}  Bb4 {[%clk 0:00:09]} 46. Rb2 {[%clk 0:00:44]}  Ba3 {[%clk 0:00:09]} 47. Rb3 {[%clk 0:00:44]}  Bc1 {[%clk 0:00:09]} 48. f4 {[%clk 0:00:41]}  Kd7 {[%clk 0:00:08]} 49. Be5 {[%clk 0:00:40]}  Nd8 {[%clk 0:00:07]} 50. Kc2 {[%clk 0:00:39]} 1-0


[Site "https://www.chess.com"]

[Event "Titled Tuesday Blitz May 24 Late 2022"]
[White "Galiana Fernandez, Adrian"]
[Black "Wachinger, Guenther"]
[WhiteFideId "32010150"]
[BlackFideId "4604261"]
[WhiteElo "2133"]
[BlackElo "2212"]
[Result "0-1"]
[Round "05"]
[TimeControl "180+1"]
[Date "2022.05.25"]
[WhiteClock "0:01:35"]
[BlackClock "0:01:20"]

1. Nf3 {[%clk 0:03:00]}  d5 {[%clk 0:02:59]} 2. g3 {[%clk 0:03:00]}  e6 {[%clk 0:02:59]} 3. Bg2 {[%clk 0:03:01]}  Nf6 {[%clk 0:03:00]} 4. O-O {[%clk 0:03:01]}  Be7 {[%clk 0:03:00]} 5. c4 {[%clk 0:02:58]}  O-O {[%clk 0:03:00]} 6. d4 {[%clk 0:02:58]}  c6 {[%clk 0:03:00]} 7. Qc2 {[%clk 0:02:57]}  b6 {[%clk 0:03:00]} 8. b3 {[%clk 0:02:56]}  Nbd7 {[%clk 0:02:52]} 9. Bb2 {[%clk 0:02:56]}  Re8 {[%clk 0:02:49]} 10. Nbd2 {[%clk 0:02:53]}  Bb7 {[%clk 0:02:45]} 11. Rad1 {[%clk 0:02:50]}  Rc8 {[%clk 0:02:29]} 12. Qb1 {[%clk 0:02:48]}  Qc7 {[%clk 0:02:26]} 13. Rfe1 {[%clk 0:02:47]}  c5 {[%clk 0:02:21]} 14. dxc5 {[%clk 0:02:45]}  Bxc5 {[%clk 0:02:17]} 15. cxd5 {[%clk 0:02:42]}  Nxd5 {[%clk 0:02:13]} 16. Ne4 {[%clk 0:02:25]}  Bf8 {[%clk 0:02:08]} 17. Rc1 {[%clk 0:02:17]}  Qb8 {[%clk 0:02:05]} 18. Qa1 {[%clk 0:02:14]}  h6 {[%clk 0:01:55]} 19. h4 {[%clk 0:02:11]}  Qa8 {[%clk 0:01:49]} 20. Ned2 {[%clk 0:02:02]}  b5 {[%clk 0:01:41]} 21. Rxc8 {[%clk 0:01:53]}  Rxc8 {[%clk 0:01:39]} 22. Rc1 {[%clk 0:01:53]}  a5 {[%clk 0:01:31]} 23. Nd4 {[%clk 0:01:48]}  Qa6 {[%clk 0:01:25]} 24. Rxc8 {[%clk 0:01:43]}  Bxc8 {[%clk 0:01:24]} 25. Nf5 {[%clk 0:01:38]}  exf5 {[%clk 0:01:20]} 26. Bxd5 {[%clk 0:01:35]}  Qd6 {[%clk 0:01:20]} 0-1


[Site "https://www.chess.com"]

[Event "Titled Tuesday Blitz May 24 Late 2022"]
[White "Golubev, Mikhail"]
[Black "Roux, Baptiste"]
[WhiteFideId "14100983"]
[BlackFideId "36017450"]
[WhiteElo "2374"]
[BlackElo "1935"]
[Result "0-1"]
[Round "05"]
[TimeControl "180+1"]
[Date "2022.05.25"]
[WhiteClock "0:00:02"]
[BlackClock "0:00:37"]

1. e4 {[%clk 0:03:00]}  c5 {[%clk 0:02:57]} 2. Nf3 {[%clk 0:03:00]}  e6 {[%clk 0:02:56]} 3. d4 {[%clk 0:03:00]}  cxd4 {[%clk 0:02:56]} 4. Nxd4 {[%clk 0:03:01]}  Nf6 {[%clk 0:02:57]} 5. Nc3 {[%clk 0:03:00]}  Nc6 {[%clk 0:02:57]} 6. Bf4 {[%clk 0:02:56]}  Bc5 {[%clk 0:02:38]} 7. Nxc6 {[%clk 0:02:39]}  bxc6 {[%clk 0:02:38]} 8. e5 {[%clk 0:02:22]}  Nd5 {[%clk 0:02:31]} 9. Nxd5 {[%clk 0:02:20]}  cxd5 {[%clk 0:02:30]} 10. Bd3 {[%clk 0:02:04]}  Qb6 {[%clk 0:01:58]} 11. O-O {[%clk 0:01:59]}  Qxb2 {[%clk 0:01:58]} 12. Rb1 {[%clk 0:01:35]}  Qxa2 {[%clk 0:01:48]} 13. Qg4 {[%clk 0:01:33]}  Kf8 {[%clk 0:01:36]} 14. Qh4 {[%clk 0:01:20]}  Be7 {[%clk 0:01:36]} 15. Bg5 {[%clk 0:01:19]}  Qa3 {[%clk 0:01:31]} 16. Rb3 {[%clk 0:01:10]}  Qc5 {[%clk 0:01:25]} 17. Rfb1 {[%clk 0:01:05]}  h6 {[%clk 0:01:16]} 18. Bxe7+ {[%clk 0:00:54]}  Qxe7 {[%clk 0:01:16]} 19. Qd4 {[%clk 0:00:48]}  g6 {[%clk 0:01:09]} 20. Rb8 {[%clk 0:00:29]}  Rxb8 {[%clk 0:01:09]} 21. Rxb8 {[%clk 0:00:28]}  Kg7 {[%clk 0:01:09]} 22. g3 {[%clk 0:00:09]}  Qa3 {[%clk 0:01:06]} 23. Qf4 {[%clk 0:00:08]}  Qe7 {[%clk 0:00:56]} 24. Qd4 {[%clk 0:00:07]}  a5 {[%clk 0:00:54]} 25. Qc3 {[%clk 0:00:04]}  a4 {[%clk 0:00:48]} 26. Rxc8 {[%clk 0:00:03]}  Rxc8 {[%clk 0:00:48]} 27. Qxc8 {[%clk 0:00:03]}  Qb4 {[%clk 0:00:39]} 28. Kg2 {[%clk 0:00:03]}  a3 {[%clk 0:00:36]} 29. Qa6 {[%clk 0:00:02]}  Qb2 {[%clk 0:00:37]} 0-1


[Site "https://www.chess.com"]

[Event "Titled Tuesday Blitz May 24 Late 2022"]
[White "Gong, Patrick"]
[Black "Maghsoodloo, Parham"]
[WhiteFideId "3222500"]
[BlackFideId "12539929"]
[WhiteElo "2103"]
[BlackElo "2630"]
[Result "1/2-1/2"]
[Round "05"]
[TimeControl "180+1"]
[Date "2022.05.24"]
[WhiteClock "0:00:25"]
[BlackClock "0:00:21"]

1. Nf3 {[%clk 0:03:00]}  c5 {[%clk 0:03:00]} 2. g3 {[%clk 0:03:00]}  b6 {[%clk 0:02:59]} 3. Bg2 {[%clk 0:03:00]}  Bb7 {[%clk 0:02:59]} 4. O-O {[%clk 0:03:00]}  g6 {[%clk 0:02:59]} 5. c4 {[%clk 0:02:58]}  Bg7 {[%clk 0:02:59]} 6. Nc3 {[%clk 0:02:57]}  Nc6 {[%clk 0:02:58]} 7. Rb1 {[%clk 0:02:54]}  Nh6 {[%clk 0:02:57]} 8. a3 {[%clk 0:02:52]}  Nf5 {[%clk 0:02:57]} 9. b4 {[%clk 0:02:48]}  d6 {[%clk 0:02:57]} 10. Bb2 {[%clk 0:02:41]}  O-O {[%clk 0:02:57]} 11. Nd5 {[%clk 0:02:33]}  Bxb2 {[%clk 0:02:45]} 12. Rxb2 {[%clk 0:02:34]}  e6 {[%clk 0:02:45]} 13. Nc3 {[%clk 0:02:32]}  Rc8 {[%clk 0:02:44]} 14. bxc5 {[%clk 0:02:31]}  dxc5 {[%clk 0:02:42]} 15. d3 {[%clk 0:02:31]}  Qe7 {[%clk 0:02:42]} 16. Qb1 {[%clk 0:02:28]}  Rcd8 {[%clk 0:02:40]} 17. Ne4 {[%clk 0:02:21]}  h5 {[%clk 0:02:38]} 18. h4 {[%clk 0:02:20]}  Ncd4 {[%clk 0:02:34]} 19. Nxd4 {[%clk 0:02:18]}  Nxd4 {[%clk 0:02:34]} 20. Qc1 {[%clk 0:02:17]}  Bxe4 {[%clk 0:02:33]} 21. Bxe4 {[%clk 0:02:16]}  Qf6 {[%clk 0:02:33]} 22. Kg2 {[%clk 0:02:08]}  Kg7 {[%clk 0:02:32]} 23. Qg5 {[%clk 0:02:08]}  Qxg5 {[%clk 0:02:20]} 24. hxg5 {[%clk 0:02:09]}  e5 {[%clk 0:02:19]} 25. a4 {[%clk 0:02:05]}  Ne6 {[%clk 0:02:19]} 26. f4 {[%clk 0:02:01]}  h4 {[%clk 0:02:15]} 27. Bd5 {[%clk 0:01:55]}  hxg3 {[%clk 0:02:15]} 28. Bxe6 {[%clk 0:01:54]}  fxe6 {[%clk 0:02:15]} 29. Kxg3 {[%clk 0:01:49]}  Rd4 {[%clk 0:02:12]} 30. a5 {[%clk 0:01:45]}  exf4+ {[%clk 0:02:12]} 31. Kf3 {[%clk 0:01:42]}  Rf5 {[%clk 0:01:08]} 32. axb6 {[%clk 0:01:34]}  axb6 {[%clk 0:01:08]} 33. Rxb6 {[%clk 0:01:31]}  Rxg5 {[%clk 0:01:05]} 34. Rxe6 {[%clk 0:01:30]}  Rg3+ {[%clk 0:01:04]} 35. Kf2 {[%clk 0:01:30]}  Rd8 {[%clk 0:00:50]} 36. Rb1 {[%clk 0:01:16]}  Rf8 {[%clk 0:00:38]} 37. Rb7+ {[%clk 0:01:14]}  Kh6 {[%clk 0:00:38]} 38. Rc7 {[%clk 0:01:09]}  Rf5 {[%clk 0:00:36]} 39. Rcc6 {[%clk 0:01:00]}  Rh5 {[%clk 0:00:34]} 40. Re4 {[%clk 0:00:55]}  Rh2+ {[%clk 0:00:34]} 41. Ke1 {[%clk 0:00:55]}  Rg1+ {[%clk 0:00:32]} 42. Kd2 {[%clk 0:00:56]}  f3 {[%clk 0:00:33]} 43. Rf6 {[%clk 0:00:53]}  Rf1 {[%clk 0:00:21]} 44. Re8 {[%clk 0:00:19]}  Rxe2+ {[%clk 0:00:19]} 45. Rxe2 {[%clk 0:00:18]}  fxe2 {[%clk 0:00:19]} 46. Re6 {[%clk 0:00:19]}  e1=Q+ {[%clk 0:00:13]} 47. Rxe1 {[%clk 0:00:18]}  Rxe1 {[%clk 0:00:14]} 48. Kxe1 {[%clk 0:00:19]}  Kg5 {[%clk 0:00:15]} 49. Ke2 {[%clk 0:00:18]}  Kf4 {[%clk 0:00:14]} 50. d4 {[%clk 0:00:18]}  cxd4 {[%clk 0:00:15]} 51. c5 {[%clk 0:00:18]}  Ke5 {[%clk 0:00:15]} 52. Kd3 {[%clk 0:00:18]}  Kd5 {[%clk 0:00:13]} 53. c6 {[%clk 0:00:19]}  Kxc6 {[%clk 0:00:14]} 54. Kxd4 {[%clk 0:00:19]}  Kd6 {[%clk 0:00:14]} 55. Ke4 {[%clk 0:00:20]}  Ke6 {[%clk 0:00:14]} 56. Kf4 {[%clk 0:00:21]}  Kf6 {[%clk 0:00:15]} 57. Kg4 {[%clk 0:00:22]}  Kf7 {[%clk 0:00:15]} 58. Kg5 {[%clk 0:00:22]}  Kg7 {[%clk 0:00:16]} 59. Kg4 {[%clk 0:00:22]}  Kh7 {[%clk 0:00:16]} 60. Kh4 {[%clk 0:00:23]}  Kh6 {[%clk 0:00:17]} 61. Kg4 {[%clk 0:00:24]}  g5 {[%clk 0:00:17]} 62. Kg3 {[%clk 0:00:24]}  Kg6 {[%clk 0:00:18]} 63. Kg4 {[%clk 0:00:24]}  Kf6 {[%clk 0:00:19]} 64. Kf3 {[%clk 0:00:23]}  Kf5 {[%clk 0:00:19]} 65. Kg3 {[%clk 0:00:24]}  Ke4 {[%clk 0:00:20]} 66. Kg4 {[%clk 0:00:24]}  Ke5 {[%clk 0:00:21]} 67. Kxg5 {[%clk 0:00:25]} 1/2-1/2


[Site "https://www.chess.com"]

[Event "Titled Tuesday Blitz May 24 Late 2022"]
[White "Grischuk, Alexander"]
[Black "Ibarra Jerez, Jose Carlos"]
[WhiteFideId "4126025"]
[BlackFideId "2226332"]
[WhiteElo "2762"]
[BlackElo "2626"]
[Result "1-0"]
[Round "05"]
[TimeControl "180+1"]
[Date "2022.05.24"]
[WhiteClock "0:00:06"]
[BlackClock "0:00:05"]

1. d4 {[%clk 0:03:00]}  d5 {[%clk 0:02:58]} 2. c4 {[%clk 0:02:59]}  e6 {[%clk 0:02:59]} 3. Nc3 {[%clk 0:02:55]}  a6 {[%clk 0:02:59]} 4. cxd5 {[%clk 0:02:52]}  exd5 {[%clk 0:02:58]} 5. Nf3 {[%clk 0:02:52]}  Nf6 {[%clk 0:02:58]} 6. Bg5 {[%clk 0:02:52]}  Be6 {[%clk 0:02:58]} 7. e3 {[%clk 0:02:52]}  Nbd7 {[%clk 0:02:57]} 8. Bd3 {[%clk 0:02:45]}  Bd6 {[%clk 0:02:56]} 9. h3 {[%clk 0:02:44]}  c6 {[%clk 0:02:55]} 10. Bf4 {[%clk 0:02:43]}  Qc7 {[%clk 0:02:54]} 11. Qd2 {[%clk 0:02:43]}  O-O {[%clk 0:02:48]} 12. O-O {[%clk 0:02:43]}  Rfe8 {[%clk 0:02:46]} 13. Rfe1 {[%clk 0:02:38]}  Nb6 {[%clk 0:02:45]} 14. b3 {[%clk 0:02:34]}  a5 {[%clk 0:02:37]} 15. Rac1 {[%clk 0:02:33]}  Qd8 {[%clk 0:02:23]} 16. Qc2 {[%clk 0:02:26]}  h6 {[%clk 0:02:11]} 17. Bxd6 {[%clk 0:02:07]}  Qxd6 {[%clk 0:02:10]} 18. Ne5 {[%clk 0:02:08]}  a4 {[%clk 0:01:53]} 19. bxa4 {[%clk 0:01:58]}  Ra7 {[%clk 0:01:48]} 20. Rb1 {[%clk 0:01:57]}  Nc4 {[%clk 0:01:46]} 21. Bxc4 {[%clk 0:01:54]}  dxc4 {[%clk 0:01:46]} 22. Rb6 {[%clk 0:01:48]}  Nd5 {[%clk 0:01:29]} 23. Nxc4 {[%clk 0:01:11]}  Qc7 {[%clk 0:01:29]} 24. a5 {[%clk 0:01:06]}  Rxa5 {[%clk 0:01:20]} 25. Nxa5 {[%clk 0:00:49]}  Qxb6 {[%clk 0:01:20]} 26. Nb3 {[%clk 0:00:47]}  Nb4 {[%clk 0:01:04]} 27. Qd2 {[%clk 0:00:43]}  Bxb3 {[%clk 0:00:34]} 28. axb3 {[%clk 0:00:42]}  Ra8 {[%clk 0:00:33]} 29. Na4 {[%clk 0:00:39]}  Qb5 {[%clk 0:00:34]} 30. Rc1 {[%clk 0:00:36]}  Nd5 {[%clk 0:00:30]} 31. Qc2 {[%clk 0:00:33]}  Rd8 {[%clk 0:00:20]} 32. Qc4 {[%clk 0:00:29]}  Qa5 {[%clk 0:00:21]} 33. Nc5 {[%clk 0:00:29]}  Qc7 {[%clk 0:00:20]} 34. Ra1 {[%clk 0:00:28]}  b6 {[%clk 0:00:19]} 35. Nd3 {[%clk 0:00:28]}  Nf6 {[%clk 0:00:17]} 36. Ne5 {[%clk 0:00:26]}  c5 {[%clk 0:00:17]} 37. b4 {[%clk 0:00:25]}  Rc8 {[%clk 0:00:16]} 38. bxc5 {[%clk 0:00:25]}  bxc5 {[%clk 0:00:17]} 39. Rc1 {[%clk 0:00:25]}  Ne4 {[%clk 0:00:12]} 40. Nd3 {[%clk 0:00:25]}  Qa7 {[%clk 0:00:06]} 41. dxc5 {[%clk 0:00:22]}  Nf6 {[%clk 0:00:03]} 42. c6 {[%clk 0:00:22]}  Qa3 {[%clk 0:00:03]} 43. Ne5 {[%clk 0:00:21]}  Qe7 {[%clk 0:00:02]} 44. Nf3 {[%clk 0:00:21]}  Ne8 {[%clk 0:00:03]} 45. Nd4 {[%clk 0:00:21]}  Nd6 {[%clk 0:00:03]} 46. Qd5 {[%clk 0:00:21]}  Qf6 {[%clk 0:00:03]} 47. c7 {[%clk 0:00:18]}  Qe7 {[%clk 0:00:03]} 48. Qc6 {[%clk 0:00:16]}  Ne8 {[%clk 0:00:02]} 49. Nb5 {[%clk 0:00:16]}  Qf6 {[%clk 0:00:01]} 50. Qxf6 {[%clk 0:00:15]}  gxf6 {[%clk 0:00:02]} 51. g4 {[%clk 0:00:14]}  Kf8 {[%clk 0:00:03]} 52. Rd1 {[%clk 0:00:13]}  Ke7 {[%clk 0:00:03]} 53. Kg2 {[%clk 0:00:13]}  Ra8 {[%clk 0:00:02]} 54. Rd5 {[%clk 0:00:13]}  Rc8 {[%clk 0:00:02]} 55. Rh5 {[%clk 0:00:12]}  Ke6 {[%clk 0:00:02]} 56. Rxh6 {[%clk 0:00:12]}  Nxc7 {[%clk 0:00:02]} 57. Nxc7+ {[%clk 0:00:12]}  Rxc7 {[%clk 0:00:03]} 58. Rh5 {[%clk 0:00:12]}  Rd7 {[%clk 0:00:03]} 59. Rf5 {[%clk 0:00:13]}  Rd2 {[%clk 0:00:04]} 60. h4 {[%clk 0:00:13]}  Ra2 {[%clk 0:00:04]} 61. h5 {[%clk 0:00:13]}  Ra1 {[%clk 0:00:05]} 62. h6 {[%clk 0:00:13]}  Ra8 {[%clk 0:00:05]} 63. h7 {[%clk 0:00:13]}  Rh8 {[%clk 0:00:06]} 64. Rh5 {[%clk 0:00:13]}  f5 {[%clk 0:00:06]} 65. gxf5+ {[%clk 0:00:12]}  Kf6 {[%clk 0:00:07]} 66. f4 {[%clk 0:00:09]}  Kg7 {[%clk 0:00:07]} 67. Kf3 {[%clk 0:00:09]}  Kf6 {[%clk 0:00:08]} 68. e4 {[%clk 0:00:09]}  Kg7 {[%clk 0:00:07]} 69. e5 {[%clk 0:00:10]}  f6 {[%clk 0:00:06]} 70. Ke4 {[%clk 0:00:10]}  Kf7 {[%clk 0:00:06]} 71. Rh6 {[%clk 0:00:09]}  Ke7 {[%clk 0:00:06]} 72. Rxf6 {[%clk 0:00:09]}  Rxh7 {[%clk 0:00:06]} 73. Ra6 {[%clk 0:00:09]}  Rh1 {[%clk 0:00:05]} 74. Ra7+ {[%clk 0:00:09]}  Kf8 {[%clk 0:00:06]} 75. f6 {[%clk 0:00:10]}  Kg8 {[%clk 0:00:06]} 76. Kf5 {[%clk 0:00:10]}  Kh8 {[%clk 0:00:07]} 77. Ke6 {[%clk 0:00:09]}  Rf1 {[%clk 0:00:07]} 78. Ra8+ {[%clk 0:00:08]}  Kh7 {[%clk 0:00:07]} 79. f7 {[%clk 0:00:08]}  Rxf4 {[%clk 0:00:07]} 80. f8=Q {[%clk 0:00:06]}  Rf6+ {[%clk 0:00:07]} 81. Kd5 {[%clk 0:00:06]}  Rd6+ {[%clk 0:00:05]} 82. Qxd6 {[%clk 0:00:06]} 1-0


[Site "https://www.chess.com"]